Cogmind - Beta 15 @@@ ROGUE MODE // 2025.07.05 @ 14:26:42 Player: Rockstar Result: Self-destructed Performance ------------- Evolutions (1) 500 Regions Visited (2) 400 Robots Destroyed (12) 60 Value Destroyed (345) 345 Prototype IDs (0) 0 Alien Tech Used (0) 0 Bonus (0) 0 TOTAL SCORE: 1305 Bonus ------- None Cogmind --------- Core Integrity 140/400 Matter 268/300 Energy 75/100 System Corruption 0% Temperature Cool (9) Movement Core (300) Ox5 Location -9/Materials Parts ------- > --- POWER (2) -------- (None) > --- PROPULSION (2) --- (None) > --- UTILITY (3) ------ Medium Storage Unit Utility Shielding > --- WEAPON (2) ------- Shock Bomb Launcher > --- INVENTORY (10) --- Heat Sink Compact Battery (200) Compact Battery (200) Large Matter Pod (150) Light Assault Rifle Light Cannon Shock Bomb Launcher Peak State ------------ > --- POWER ------------ Light Ion Engine Light Ion Engine > --- PROPULSION ------- Wheel Wheel > --- UTILITY ---------- Medium Storage Unit Compact Battery Utility Shielding > --- WEAPON ----------- Small Laser Hammer > --- INVENTORY -------- Ion Engine Light Nuclear Core Wheel Wheel Wheel Heat Sink Large Matter Pod Light Assault Rifle Light Cannon [Rating: 12] Favorites ----------- Power Light Ion Engine Engine Light Ion Engine Power Core Light Nuclear Core Propulsion Wheel Treads Light Treads Wheel Wheel Utility Medium Storage Unit Device Tractor Beam Storage Medium Storage Unit Protection Utility Shielding Weapon Hammer Energy Gun Small Laser Ballistic Gun Light Assault Rifle Ballistic Cannon Light Cannon Launcher Shock Bomb Launcher Impact Weapon Hammer Build | -11 -10 -9 ------- Run | Yrd Mat Mat Slots Evolved 2 | . . 2 Power 1 | . . 1 Propulsion . | . . . Utility 1 | . . 1 Weapon . | . . . Parts Attached 24 | 5 8 11 Power 5 | 1 2 2 Engine 4 | 1 1 2 Core 1 | . 1 . Reactor . | . . . Propulsion 6 | 2 2 2 Treads 2 | . . 2 Leg . | . . . Wheel 4 | 2 2 . Hover . | . . . Flight . | . . . Utility 8 | 1 2 5 Device 1 | . . 1 Storage 3 | 1 1 1 Processor . | . . . Hackware . | . . . Protection 4 | . 1 3 Artifact . | . . . Weapon 5 | 1 2 2 Energy Gun 1 | . 1 . Energy Cannon . | . . . Ballistic Gun 1 | 1 . . Ballistic Cannon 1 | . . 1 Launcher 1 | . . 1 Special Weapon . | . . . Impact Weapon 1 | . 1 . Slashing Weapon . | . . . Piercing Weapon . | . . . Special Melee Weapon . | . . . Unidentified Prototypes . | . . . Parts Lost 10 | . . 10 Power 3 | . . 3 Propulsion 2 | . . 2 Utility 3 | . . 3 Weapon 2 | . . 2 Highest Loss Streak 8 | . . 8 To Critical Strikes . | . . . Average Backups 7 | 2 6 8 Power 1 | . 2 . Propulsion 1 | 1 1 . Utility 2 | . 1 3 Weapon 2 | . 1 3 Tool/Special . | . . . Unused Backups 11 | . 5 6 Power 1 | . 1 . Propulsion 4 | . 2 2 Utility 3 | . . 3 Weapon 3 | . 2 1 Tool/Special . | . . . Average Slot Usage (%) 87 | . 91 82 Engine 11 | . 7 16 Core 3 | . 6 . Treads 3 | . . 7 Wheel 19 | . 28 7 Storage 14 | . 14 14 Protection 13 | . 11 16 Energy Gun 7 | . 8 6 Ballistic Gun 5 | . 9 . Impact Weapon 7 | . 4 11 Peak Build Rating 12 | 5 10 12 Average Rating 8 | 4 7 9 On Entrance 5 | . 5 10 Naked Turns . | . . . Heaviest Build 27 | 9 19 27 Greatest Support 40 | 20 20 40 Greatest Overweight (x) 8 | . . 8 Average Overweight (x) . | . . 1 Largest Inventory Capacity 10 | 8 10 10 Average Capacity 9 | 7 9 10 Most Carried 10 | 5 10 10 Average Carried 7 | 2 7 8 Final Capacity 10 | 8 10 10 Final Carried 10 | 5 10 7 Class Distribution -------------------- 88% | Mutant 11% | Scavenger-Mutant Dominant Class ---------------- Mutant | -10/Materials Mutant | -9/Materials Resources | -11 -10 -9 ----------- Run | Yrd Mat Mat Matter Collected 465 | 221 154 90 Remotely 10 | . . 10 Salvage Created 378 | . 181 197 Parts 25 | . 16 9 Haulers Intercepted . | . . . Recyclers Shooed . | . . . Parts Field Recycled . | . . . Retrieved Matter . | . . . Parts Self-Destructed . | . . . Prevented . | . . . Kills | -11 -10 -9 ------- Run | Yrd Mat Mat Combat Hostiles Destroyed 10 | . 4 6 Melee 4 | . 1 3 Guns 4 | . 3 1 Cannons 1 | . . 1 Classes Destroyed 5 | . 2 3 Operator 1 | . 1 . Watcher 1 | . . 1 Swarmer 3 | . . 3 Grunt 5 | . 4 1 Sentry 2 | . . 2 Best Kill Streak 2 | . 2 2 Combat Bots Only 2 | . 2 2 Max Kills in Single Turn 1 | . 1 1 Gunslinging . | . . . Exploded . | . . . Melee 1 | . 1 1 Uniques/NPCs Destroyed . | . . . Combat | -11 -10 -9 -------- Run | Yrd Mat Mat Hostile Shots Fired 191 | . 15 176 Missed 43 | . 2 41 Hits 148 | . 13 135 Projectile 148 | . 13 135 Critical Strikes 2 | . 1 1 Damage Taken 1473 | . 167 1306 Core 354 | . 94 260 Absorbed by Shields . | . . . Redirected to Shielding 21 | . . 21 Core Remaining (%) 81 | 100 62 . Volleys Fired 22 | . 10 12 Largest 2 | . 2 1 Hottest 60 | . 60 40 Shots Fired 31 | . 19 12 Gun 28 | . 19 9 Cannon 3 | . . 3 Launcher . | . . . Special . | . . . Kinetic 13 | . 10 3 Thermal 18 | . 9 9 Explosive . | . . . Electromagnetic . | . . . Robot Hit Streak 10 | . 10 8 Robot Miss Streak 2 | . 1 2 Penetration Max . | . . . Secondary Targets . | . . . Shots Hit Robots 42 | . 18 24 Core Hits 14 | . 8 6 Critical Kills . | . . . Critical Parts Destroyed 2 | . . 2 Critical Strikes 3 | . . 3 Blast 1 | . . 1 Smash 2 | . . 2 Melee Attacks 20 | . 2 18 Impact 20 | . 2 18 Slashing . | . . . Piercing . | . . . Sneak Attacks 1 | . 1 . Combat Hostiles . | . . . Follow-up Attacks . | . . . Damage Inflicted 700 | . 222 478 Guns 223 | . 158 65 Cannons 52 | . . 52 Explosions . | . . . Melee 425 | . 64 361 Ramming . | . . . Kinetic 109 | . 57 52 Thermal 166 | . 101 65 Explosive . | . . . Electromagnetic . | . . . Impact 425 | . 64 361 Slashing . | . . . Piercing . | . . . Highest Corruption . | . . . Average Corruption . | . . . Corruption Purged . | . . . Corruption Blocked . | . . . Overload Shots . | . . . Overflow Damage 92 | . 30 62 Projectiles . | . . . Explosions . | . . . Melee 92 | . 30 62 Knockbacks 3 | . . 3 Impact 3 | . . 3 Kinetic . | . . . Secondary . | . . . Self-Inflicted Damage . | . . . Shots . | . . . Rammed . | . . . Targets Rammed . | . . . Kicked . | . . . Crushed . | . . . Highest Temperature 90 | . 90 60 Average Temperature 38 | . 48 24 Received Heat Transfer 321 | . 111 210 Siege Activations . | . . . Martial Activations . | . . . Shielding Activations . | . . . Robots Disrupted . | . . . Combat Hostiles . | . . . Robots Corrupted 2 | . . 2 Combat Hostiles 1 | . . 1 Parts Fried 3 | . 1 2 Impact Corruptions 6 | . 1 5 Robots Melted . | . . . Combat Hostiles . | . . . Parts Melted 1 | . . 1 Heat Transferred 375 | . 225 150 Parts Sabotaged . | . . . Parts Stolen . | . . . Parts Stripped . | . . . Power Chain Reactions . | . . . Alert | -11 -10 -9 ------- Run | Yrd Mat Mat Maximum Alert Level . | . . . Low Security (%) 100 | 100 100 100 Level 1 . | . . . Level 2 . | . . . Level 3 . | . . . Level 4 . | . . . Level 5 . | . . . High Security . | . . . Max Security . | . . . Peak Influence 70 | . 70 40 Initial 18 | . . 18 Average 17 | . 23 13 Influence Increases 325 | . 150 175 Destroy 0b10 Robot/C 200 | . 80 120 Destroy 0b10 Robot/NC 10 | . 5 5 Destroy Leader 42 | . 20 22 Successful Hack 13 | . . 13 Disable Machine 15 | . . 15 Partial Spotted 15 | . 15 . Lose Combat Pursuer 30 | . 30 . Influence Decreases 315 | . 105 210 Entered New Map 27 | . . 27 Time Decay 208 | . 105 103 Lost Part 70 | . . 70 Lost Ally 10 | . . 10 Squads Dispatched 2 | . 2 . Investigation 1 | . 1 . Extermination . | . . . Reinforcement 1 | . 1 . Assault . | . . . Garrison . | . . . Intercept . | . . . Searches Triggered . | . . . Construction Impeded . | . . . Haulers Reinforced . | . . . Active Scanning Responses . | . . . Cargo Convoy Interrupts . | . . . Stealth | -11 -10 -9 --------- Run | Yrd Mat Mat Distress Signals 1 | . . 1 Communications Jammed . | . . . Distress Signals . | . . . Times Spotted 31 | . 12 19 Peak Tracking Total 9 | . 3 9 Tactical Retreats 2 | . 2 . Traps | -11 -10 -9 ------- Run | Yrd Mat Mat Traps Triggered 1 | . 1 . Indirectly . | . . . Trap Hack Attempts . | . . . Triggered . | . . . Disarmed . | . . . Reprogrammed . | . . . Reused . | . . . Traps Extracted . | . . . Installed . | . . . Triggered . | . . . Objects Rigged 2 | . . 2 Machines | -11 -10 -9 ---------- Run | Yrd Mat Mat Machines Disabled 1 | . . 1 Max in Single Turn 1 | . . 1 Machines Repaired . | . . . Machines Dismantled . | . . . Machines Sabotaged . | . . . Overloaded Fab Kills . | . . . Hacking | -11 -10 -9 --------- Run | Yrd Mat Mat Machines Accessed 6 | . 4 2 Terminals 5 | . 3 2 Fabricators . | . . . Repair Stations . | . . . Recycling Units 1 | . 1 . Scanalyzers . | . . . Garrison Access . | . . . Total Hacks 19 | . 10 9 Successful 8 | . 4 4 Failed 11 | . 6 5 Catastrophic 3 | . 1 2 Database Lockouts . | . . . Manual 15 | . 7 8 Terminals 16 | . 7 9 Fabricators . | . . . Repair Stations . | . . . Recycling Units 3 | . 3 . Scanalyzers . | . . . Garrison Access . | . . . Terminal Hacks 1 | . . 1 Recall Reinforcements 1 | . . 1 Fabricator Hacks . | . . . Repair Station Hacks . | . . . Recycling Unit Hacks 3 | . 3 . Process 1 | . 1 . Report Inventory 1 | . 1 . Retrieve Matter 1 | . 1 . Scanalyzer . | . . . Garrison Access Hacks . | . . . Unauthorized Hacks 4 | . 1 3 Terminals 4 | . 1 3 Track 2 | . 1 1 Assimilate 1 | . . 1 Detonate 1 | . . 1 Fabricators . | . . . Repair Stations . | . . . Recycling Units . | . . . Scanalyzers . | . . . Garrison Access . | . . . Data Cores Recovered . | . . . Used . | . . . Hacking Detections 5 | . 3 2 Full Trace Events . | . . . Feedback Events . | . . . Feedback Blocked . | . . . Robot Schematics Acquired . | . . . Robots Built . | . . . Authchips . | . . . Time . | . . . Total Robot Build Rating . | . . . Part Schematics Acquired . | . . . Parts Built . | . . . Authchips . | . . . Time . | . . . Total Part Build Rating . | . . . Parts Repaired . | . . . Time . | . . . Parts Recycled . | . . . Recycled Matter 115 | . 115 . Retrieved Matter 115 | . 115 . Retrieved Components . | . . . Parts Scanalyzed . | . . . Part Schematics Acquired . | . . . Parts Damaged . | . . . Bothacking | -11 -10 -9 ------------ Run | Yrd Mat Mat Used RIF Installer . | . . . Robots Hacked . | . . . Non-combat . | . . . Combat . | . . . Robot Hacks Applied . | . . . Relay Couplers Released . | . . . Fabnet Peak Effective % . | . . . Robots Rewired . | . . . Allies Hacked . | . . . Hacks Repelled . | . . . Allies | -11 -10 -9 -------- Run | Yrd Mat Mat Total Allies 1 | . . 1 Largest Group 1 | . . 1 Highest-Rated Group 10 | . . 10 Highest-Rated Ally 10 | . . 10 Total Orders 2 | . . 2 FOLLOW 2 | . . 2 Ally Attacks . | . . . Total Damage . | . . . Kills . | . . . Allies Corrupted . | . . . Allies Melted . | . . . Intel | -11 -10 -9 ------- Run | Yrd Mat Mat Active Infowar (turns) . | . . . Robot Analysis Total . | . . . Derelict Logs Recovered . | . . . Drone Launches . | . . . Drone Recoveries . | . . . Exploration | -11 -10 -9 ------------- Run | Yrd Mat Mat Turns Passed 700 | 51 371 278 Spaces Moved 420 | 47 264 109 Core 12 | 1 . 11 Treads 36 | . . 36 Legs . | . . . Wheels 372 | 46 264 62 Hover . | . . . Flight . | . . . Fastest Speed 50 | 50 80 80 Average Speed 98 | 79 80 149 Slowest Speed 450 | 80 80 450 Overloaded Moves . | . . . Propulsion Burnouts . | . . . Robots Hopped . | . . . Potential Cave-ins . | . . . Cave-ins Triggered . | . . . Exploration Rate (%) 20 | 3 42 16 Regions Visited 2 Branch Regions . Pre-discovered Areas . | . . . Known Exits Taken . | . . . Unknown Exits Taken 2 | 1 1 . Scrap Searched . | . . . Spaces Dug . | . . . Terrain Destroyed . | . . . Melee . | . . . Projectile . | . . . AOE . | . . . Terrain Rammed . | . . . Walls Destroyed . | . . . Machines Disabled . | . . . Actions | -11 -10 -9 --------- Run | Yrd Mat Mat Total 642 | 57 404 181 Wait 119 | 1 104 14 Move 418 | 46 263 109 Hop . | . . . Pick Up 17 | 5 8 4 Fast Attach 15 | 5 3 7 Attach 5 | . 1 4 Detach 4 | . 2 2 Swap 6 | . 4 2 Drop 16 | . 7 9 Fire 22 | . 10 12 Melee 20 | . 2 18 Ram . | . . . Kick . | . . . Crush . | . . . Escape Stasis . | . . . Rewire . | . . . Trap . | . . . Miscellaneous . | . . . Route ------- -11/Scrapyard -10/Materials -9/Materials History --------- Turn | Location | Event 16 | -11/Scrapyard | Discovered new exit (range 16) 52 | -11/Scrapyard | Entered Materials 315 | -10/Materials | Build established: Mutant 405 | -10/Materials | Discovered new exit (range 15) 423 | -10/Materials | Entered another Materials area 423 | -9/Materials | Evolved 2 slots: Power x1, Utility x1 682 | -9/Materials | Core integrity fell below 50% 698 | -9/Materials | Lost 8 parts (3p2n2u1w) 701 | -9/Materials | Self-destructed Last Messages --------------- K-01 Serf collects debris. S-10 Pest destroyed. K-01 Serf collects debris. Med. Armor Plating destroyed. K-01 Serf collects debris. Acquired Tractor Beam. Acquired 10 matter. Ion Engine destroyed. K-01 Serf collects debris. Dropped Tractor Beam. Acquired Med. Armor Plating. K-01 Serf collects debris. Critical hit (Burn: +37). Y-45 Defender Hvy. Assault Rifle blasted off. K-01 Serf collects debris. Y-45 Defender destroyed. K-01 Serf collects debris. Med. Armor Plating destroyed. K-01 Serf cleans the Electrolysis Chamber. Hammer destroyed. Map ----- +----------------------------------------------------+ | ??? #?????????????????????????????? | | ??? #??????????#??????????????????? | | ??? #????????? #??????????????????? | | ???""" """ """ #??????? ##?????????????????? | | ?????" """ """ =####### #?????????????????? | | ????"" """ """ = [ #?????????????????? | | ???? % +?????????????????? | | ???? * #?????????????????? | | ????##### #### ####### #?????????????????? | | ????????# ????# #????????####?????????????????? | | ????????# ?????# ###########???????????????????? | | ???????????????# ????????????????? | | ???????????????# k ??????????????? | | ???????????????# " """"" ???????????? | | ???????????????# T """"" ???????????? | | ???????????????# " """"" ????????????? | | ???????????????# % % #?????????????????? | | ?????????????### % ###???????????????? | | ?????????????#"" %""""" """#??????????????? | | ?????????????#"T =""""" R"???????????????? | | ?????????????#"" k!!! % """" """???????????????? | | ?????????????### !! l #?????????????????? | | ???????????????# * ! ![Y% #?????????????????? | | ???????????????# % #####s###/#####???????????????? | | ???????????????# #???# s ss #???????????????? | | ???????????????# #???# @ T #???????????????? | | ???????????????# #???# k #???????????????? | | ???????????????# #???#== """ #???????????????? | | ???????????????# #???#== """ #???????????????? | | ???????????????# #???# """ #???????????????? | | ???????????????# #??? % ????????????????? | | ??????????????? #???# +???????????????? | | ???????????????# #???##+#####+##???????????????? | | ???????????????#^^^??????????????????????????????? | | ???????????????#^^^??????????????????????????????? | | ??????????????? ??????????????????????????????? | | ??????????????? ??????????????????????????????? | | ????????????????! ??????????????????????????????? | | ?????????????????????????????????????????????????? | | ?????????????????????????????????????????????????? | | ?????????????????????????????????????????????????? | | ?????????????????????????????????????????????????? | | ?????????????????????????????????????????????????? | | ?????????????????????????????????????????????????? | | ?????????????????????????????????????????????????? | | ?????????????????????????????????????????????????? | | ?????????????????????????????????????????????????? | | ?????????????????????????????????????????????????? | | ?????????????????????????????????????????????????? | | ?????????????????????????????????????????????????? | +----------------------------------------------------+ Best States ------------- Heat Dissipation 28 Energy Generation 17 Energy Capacity 415 Matter Stores 300 Matter Capacity 300 Sight Range 16 Terrain Scan Density 10 Armor Coverage 225 Utility Shielding 33 Evasion (%) 44 Recoil Reduction 2 Item Schematics ----------------- None Robot Schematics ------------------ None Fabricated ------------ Nothing Repaired ---------- Nothing Alien Tech Used ----------------- None Achievements -------------- True Hacker Challenges ------------ None Game ------ Seed SalvageHardenedJets Manual? 0 Play Time 00:28:30 Cumulative 32.2 hours Start 2025.07.05 @ 13:45:38 End 2025.07.05 @ 14:26:42 Sessions 1 Manual Loads 0 Difficulty Rogue Special Mode None Game No. 24 Rogue 21 Adventurer 1 Explorer 2 Win Type - Total 0 Types 0/0/0/0/0/0/0/0/0/0 Lore% 18 Gallery% 25 Achievement% 23 Wizard Run 0 Options --------- Layout 0 ASCII 0 Keyboard 0 Movement Mouse Keybinds 0 Fullscreen 2 Font 24/Smallcaps Map View 76x50 Zoom Use 0% Tactical HUD 0 Map Filters NONE Filters NONE Steam 1 RUN: 8d09d6ed-512d-4998-951c-c6fbd26fdd3a